Cogmind - Beta 9.4 @@@ ROGUE MODE // 2020.04.02 @ 08:36:05 Player: TBExtent Result: Destroyed by Combat Programmer with EMDS Performance ------------- Evolutions (8) 4000 Regions Visited (25) 5000 Robots Destroyed (357) 1785 Value Destroyed (18973) 18973 Prototype IDs (59) 1180 Alien Tech Used (3) 600 Bonus (8262) 8262 TOTAL SCORE: 39800 Bonus ------- High Alert Combat Kills 2149 Follower Combat Kills 1946 Aligned with FarCom 300 Met Zhirov 300 Built Enhanced Grunts 300 A7 Reached Mainframe 300 Met R17 at Cetus 500 Found Hidden Lab 3000 Used Core Reset Matrix 3000 Pursued by Intercept 500 Friendly Fire -4033 Cogmind --------- Core Integrity 0/1450 Matter 73/300 Energy 83/100 System Corruption 94% Temperature Cool (0) Movement Core (200) Ox3 Location -2/Research Parts ------- > --- POWER (2) -------- (None) > --- PROPULSION (3) --- (None) > --- UTILITY (14) ----- Advanced Terrain Scan Processor Advanced Salvage Targeting Computer Experimental Targeting Computer Advanced Target Analyzer > --- WEAPON (4) ------- Linear Accelerator > --- INVENTORY (4) ---- Large Storage Unit Particle Accelerator Improved Hardlight Generator Power Maul Peak State ------------ > --- POWER ------------ Light Particle Reactor Light Particle Reactor > --- PROPULSION ------- Improved Heavy Treads Biometal Medium Treads > --- UTILITY ---------- Advanced Heat Sink Advanced Heat Sink Large Storage Unit High-capacity Storage Unit High-capacity Storage Unit High-capacity Storage Unit Advanced Salvage Targeting Computer Experimental Targeting Computer Advanced Target Analyzer Advanced Weapon Cycler Experimental Phase Shifter Medium Regenerative Plating Improved Hardlight Generator Deep Network Scanner > --- WEAPON ----------- Railgun Railgun Linked Autogun > --- INVENTORY -------- Light Particle Reactor Quantum Reactor Medium Treads Armored Medium Treads Advanced Medium Treads Centrium Heavy Treads Biometal Heavy Treads Biometal Heavy Treads Armored Huge Wheel Centrium Wheel Large Storage Unit Enhanced Optical Array Long-range Sensor Array Recoil Nullifier Particle Accelerator Hypervelocity EM Gauss Rifle Gamma Rifle Gamma Rifle Gamma Rifle Gamma Rifle Gamma Rifle Gamma Rifle Immobilizer Enhanced Quantum Rifle Coil Gun Coil Gun Railgun Linear Accelerator Micro-nuke Launcher Power Sword [Rating: 165] Favorites ----------- Power Quantum Reactor Engine Heavy Ion Engine Power Core Micro Fission Core Reactor Quantum Reactor Propulsion Light Treads Treads Light Treads Leg Myomer Leg Wheel Armored Huge Wheel Hover Unit Combat Airjet Flight Unit Field Propulsion Drive Utility High-capacity Storage Unit Device Advanced Cooling System Storage High-capacity Storage Unit Processor Modified TNC Hackware Deep Network Scanner Protection Improved Heavy Armor Plating Weapon Railgun Energy Gun Tesla Rifle Energy Cannon Advanced Beam Cannon Ballistic Gun Railgun Ballistic Cannon Linear Accelerator Launcher Shock Bomb Launcher Special Weapon Guided Remote Datajack Impact Weapon Power Maul Slashing Weapon Power Sword Build | -11 -10 -10 -9 -9 -9 -8 -8 -7 -6 -6 -6 -5 -5 -5 -5 -4 -4 -4 -4 -4 -3 -3 -3 -3 -2 ------- Run | Scr Mat Min Mat Min Exi Min Mat Fac Fac Ext Cet Fac Upp Upp War Pro Fac Upp Upp Zhi Pro Res Arm Lab Res Slots Evolved 16 | . . . 2 . . . 2 2 2 . . 2 . . . . 2 . . . . 2 . . 2 Power 1 | . . . . . . . . . . . . . . . . . . . . . . . . . 1 Propulsion 1 | . . . 1 . . . . . . . . . . . . . . . . . . . . . . Utility 12 | . . . 1 . . . 2 2 1 . . 2 . . . . 2 . . . . 1 . . 1 Weapon 2 | . . . . . . . . . 1 . . . . . . . . . . . . 1 . . . Parts Attached 429 | 1 7 5 19 14 4 . 20 8 17 7 5 9 3 6 . 13 38 5 2 7 5 48 63 9 114 Power 30 | . . 1 2 1 . . 1 . . . 1 1 . . . 1 . . 1 1 . 2 6 . 12 Engine 6 | . . 1 2 1 . . 1 . . . 1 . . . . . . . . . . . . . . Core 3 | . . . . . . . . . . . . . . . . . . . . . . . 1 . 2 Reactor 21 | . . . . . . . . . . . . 1 . . . 1 . . 1 1 . 2 5 . 10 Propulsion 56 | . 2 2 2 6 . . 3 3 1 3 1 . . . . . 2 . . . . 6 12 1 12 Treads 48 | . 2 2 2 3 . . 3 3 1 3 1 . . . . . 2 . . . . 6 12 1 7 Leg 1 | . . . . . . . . . . . . . . . . . . . . . . . . . 1 Wheel 1 | . . . . . . . . . . . . . . . . . . . . . . . . . 1 Hover 5 | . . . . 3 . . . . . . . . . . . . . . . . . . . . 2 Flight 1 | . . . . . . . . . . . . . . . . . . . . . . . . . 1 Utility 107 | . 3 . 5 . 4 . 7 3 4 3 1 5 2 . . 2 6 2 . 2 2 9 13 3 31 Device 33 | . . . . . . . . 1 2 1 . 1 . . . 1 2 . . 1 . 3 4 1 16 Storage 17 | . 2 . 3 . 4 . 3 . . . 1 . . . . . . . . . . . 1 . 3 Processor 16 | . . . . . . . 1 2 1 . . . . . . . 1 . . . 1 2 2 . 6 Hackware 2 | . . . . . . . . . . 1 . . . . . . . . . . . . . . 1 Protection 39 | . 1 . 2 . . . 3 . 1 1 . 4 2 . . 1 3 2 . 1 1 4 6 2 5 Artifact . | . . . . . . . . . . . . . . . . . . . . . . . . . . Weapon 236 | 1 2 2 10 7 . . 9 2 12 1 2 3 1 6 . 10 30 3 1 4 3 31 32 5 59 Energy Gun 79 | . . 2 4 . . . . . 2 . . 3 1 3 . 6 11 3 1 3 . . 20 1 19 Energy Cannon 12 | . . . 4 3 . . 3 . 1 . . . . . . . . . . . . . . . 1 Ballistic Gun 92 | 1 1 . 2 2 . . 2 1 6 1 2 . . 3 . 3 12 . . . 3 20 4 1 28 Ballistic Cannon 10 | . . . . . . . . . . . . . . . . . . . . . . . 5 3 2 Launcher 5 | . 1 . . 2 . . 2 . . . . . . . . . . . . . . . . . . Special Weapon 1 | . . . . . . . . . . . . . . . . . . . . . . . . . 1 Impact Weapon 1 | . . . . . . . . . . . . . . . . . . . . . . . . . 1 Slashing Weapon 36 | . . . . . . . 2 1 3 . . . . . . 1 7 . . 1 . 11 3 . 7 Piercing Weapon . | . . . . . . . . . . . . . . . . . . . . . . . . . . Special Melee Weapon . | . . . . . . . . . . . . . . . . . . . . . . . . . . Unidentified Prototypes 29 | . . . 1 . . . . . 2 . 2 1 . . . . . . . 3 . 2 4 3 11 Parts Lost 167 | . . 5 5 10 . . 2 1 2 3 . . 3 . . 4 6 2 2 . 2 23 36 . 61 Power 21 | . . 1 1 1 . . . . . . . . . . . 1 . . 1 . . 2 4 . 10 Propulsion 31 | . . 2 . 6 . . . 1 . . . . . . . . 2 . . . . 3 6 . 11 Utility 53 | . . . 1 . . . 1 . 1 2 . . 2 . . 2 2 2 . . 1 8 11 . 20 Weapon 62 | . . 2 3 3 . . 1 . 1 1 . . 1 . . 1 2 . 1 . 1 10 15 . 20 Highest Loss Streak 23 | . . 4 2 10 . . 1 1 2 1 . . 3 . . 2 2 2 1 . 1 7 10 . 23 Average Slot Usage (%) 87 | . 99 99 99 96 100 100 99 99 92 92 86 88 87 88 88 87 83 83 84 68 86 90 69 88 77 Engine 3 | . 14 14 11 11 11 11 9 7 6 6 6 3 . . . . . . . . . . . . . Reactor 3 | . . . . . . . . . . . . 1 5 5 5 4 5 5 5 5 5 3 3 4 6 Treads 13 | . 28 28 32 25 . . 9 23 20 20 13 11 11 11 11 11 9 10 10 10 10 8 8 14 7 Hover 1 | . . . . 4 33 33 17 . . . . . . . . . . . . . . . . . . Device 5 | . . . . . . . . 6 5 5 . 1 5 5 5 5 6 5 5 5 5 12 5 3 10 Storage 21 | . 20 28 29 33 33 33 27 23 20 20 25 23 23 23 23 23 21 21 21 21 21 19 19 14 13 Processor 9 | . . . . . . . 8 15 13 13 13 11 9 5 5 5 8 10 10 10 12 18 15 9 10 Protection 10 | . 7 . 3 . . . 8 7 6 6 6 15 11 17 17 16 14 14 15 14 14 5 5 26 11 Energy Gun 4 | . . 2 7 . . . . . . . . 5 17 16 17 15 7 14 15 . 1 . 6 . 1 Energy Cannon 1 | . . . 7 10 11 11 6 . 2 . . . . . . . . . . . . . . . . Ballistic Gun 10 | . 27 25 6 11 11 11 10 14 15 20 20 11 . . . 1 6 . . . 13 17 1 3 8 Naked Turns . | . . . . . . . . . . . . . . . . . . . . . . . . . . Heaviest Build 215 | 13 41 42 62 63 95 63 118 118 133 135 168 187 194 197 194 197 210 212 212 207 209 203 181 207 215 Greatest Support 110 | 20 40 40 60 66 66 66 66 63 68 78 110 110 110 110 110 110 110 108 108 108 108 108 108 95 110 Greatest Overweight (x) 20 | . 1 1 1 20 1 . 1 1 2 1 1 1 1 1 1 1 1 1 1 1 1 1 5 2 3 Average Overweight (x) . | . . 1 . . . . . 1 1 1 1 1 1 1 1 1 1 1 1 1 1 1 1 1 . Largest Inventory Capacity 38 | 6 16 16 22 22 26 22 28 28 28 28 36 36 36 36 36 36 36 36 36 36 36 36 36 28 38 Average Capacity 30 | 6 11 16 19 22 22 22 26 28 28 28 35 36 36 36 36 36 36 36 36 36 36 36 33 28 26 Most Carried 37 | 6 16 16 22 22 26 22 28 28 28 28 36 36 36 36 36 36 36 36 36 36 36 36 36 28 37 Average Carried 28 | 6 10 15 19 20 20 22 25 27 27 27 34 35 35 36 36 35 34 35 35 35 35 35 28 26 25 Final Capacity 36 | 6 16 16 22 22 22 22 28 28 28 28 36 36 36 36 36 36 36 36 36 36 36 36 28 28 4 Final Carried 36 | 6 16 13 22 18 22 22 27 28 28 28 36 36 36 36 36 34 36 36 36 36 34 33 27 28 4 Class Distribution -------------------- 31% | Hauler-Tank 27% | Hauler-Mutant 10% | Scavenger-Tank 10% | Hauler-Skirmisher 9% | Mutant 3% | Hauler-Gunner Dominant Class ---------------- Mutant | -10/Materials Mutant | -10/Mines Hauler-Mutant | -9/Materials Hauler-Mutant | -9/Mines Hauler-Mutant | -9/Exiles Hauler-Mutant | -8/Mines Hauler-Mutant | -8/Materials Hauler-Skirmisher | -7/Factory Hauler-Tank | -6/Factory Hauler-Tank | -6/Extension Hauler-Skirmisher | -6/Cetus Hauler-Tank | -5/Factory Hauler-Tank | -5/Upper Caves Hauler-Tank | -5/Upper Caves Hauler-Tank | -5/Warlord Hauler-Tank | -4/Proximity Caves Scavenger-Tank | -4/Factory Hauler-Tank | -4/Upper Caves Hauler-Tank | -4/Upper Caves Hauler-Mutant | -4/Zhirov Scavenger-Tank | -3/Proximity Caves Hauler-Gunner | -3/Research Hauler-Mutant | -3/Armory Hauler-Tank | -3/Lab Scavenger-Tank | -2/Research Resources | -11 -10 -10 -9 -9 -9 -8 -8 -7 -6 -6 -6 -5 -5 -5 -5 -4 -4 -4 -4 -4 -3 -3 -3 -3 -2 ----------- Run | Scr Mat Min Mat Min Exi Min Mat Fac Fac Ext Cet Fac Upp Upp War Pro Fac Upp Upp Zhi Pro Res Arm Lab Res Matter Collected 11497 | 170 388 115 263 222 . . 453 158 182 525 322 154 33 151 . 312 1053 79 87 41 253 1217 1394 159 3766 Remotely . | . . . . . . . . . . . . . . . . . . . . . . . . . . Salvage Created 20732 | . 455 143 1178 406 . . 821 185 487 582 298 482 1365 188 . 512 1525 111 407 111 564 3372 1714 . 5826 Parts 1063 | . 29 9 71 35 . . 39 16 20 32 9 26 43 10 . 19 66 7 16 1 24 261 91 . 239 Haulers Intercepted 12 | . 2 . 4 . . . 3 . 1 . . 1 . . . . . . . . . . . . 1 Recyclers Shooed 22 | . 1 . 2 . . . 2 . 2 1 . 4 . . . . 2 . . . . 1 . . 7 Parts Field Recycled . | . . . . . . . . . . . . . . . . . . . . . . . . . . Retrieved Matter . | . . . . . . . . . . . . . . . . . . . . . . . . . . Parts Self-Destructed 70 | . . . . . . . . . . . . . 17 17 . 12 . 6 . 1 17 . . . . Prevented 59 | . . . . . . . . . . . . . 26 . . 7 . 4 16 . 6 . . . . Kills | -11 -10 -10 -9 -9 -9 -8 -8 -7 -6 -6 -6 -5 -5 -5 -5 -4 -4 -4 -4 -4 -3 -3 -3 -3 -2 ------- Run | Scr Mat Min Mat Min Exi Min Mat Fac Fac Ext Cet Fac Upp Upp War Pro Fac Upp Upp Zhi Pro Res Arm Lab Res Combat Hostiles Destroyed 306 | . 13 5 19 26 . . 17 3 7 9 2 8 22 5 . 10 19 4 5 . 7 42 26 1 56 Melee 5 | . . . . . . . . . . . . . . . . . . . . . . . . . 5 Guns 210 | . 12 5 10 5 . . 5 3 4 9 2 3 10 5 . 7 17 3 1 . 5 42 16 1 45 Cannons 31 | . . . 9 6 . . 6 . 3 . . . . . . . . . . . . . 7 . . AOE 31 | . 1 . . 15 . . 6 . . . . 3 4 . . . . 1 . . . . . . 1 Classes Destroyed 17 | . 4 . 4 2 . . . 1 . 3 . . . . . . . . 1 . . . 2 . . Worker 12 | . . . 1 2 . . . 1 . . . 3 . . . . . . . . . 1 . . 4 Builder 8 | . . . . . . . . . . 2 . 1 . . . . . . . . . 1 . . 4 Hauler 12 | . 2 . 4 . . . 3 . 1 . . 1 . . . . . . . . . . . . 1 Recycler 10 | . . . 2 1 . . . . . . . . . . . . 1 . . . . 1 . . 5 Watcher 6 | . 1 . 1 . . . . . . . . . . . . . 2 . . . . . . . 2 Swarmer 50 | . 6 3 3 9 . . 7 . . . . 2 6 3 . 5 . 4 . . . 2 . . . Saboteur 1 | . . . . . . . . . . . . . . . . . . . . . . . 1 . . Grunt 80 | . 7 2 11 2 . . 6 . 4 5 1 5 7 . . 1 5 . 2 . 3 9 . . 10 Brawler 5 | . . . 1 . . . . . . . . . 4 . . . . . . . . . . . . Duelist 12 | . . . . . . . . . . 1 . . 3 . . 2 1 . 1 . 1 . 3 . . Sentry 28 | . . . 4 . . . 4 1 . 2 . 1 2 . . 1 4 . . . 1 6 1 . 1 Demolisher 5 | . . . . 2 . . . . . . . . . . . . . . . . . . 3 . . Specialist 1 | . . . . . . . . . . . . . . . . . . . . . . . 1 . . Hunter 14 | . . . . . . . . . . . . . . . . . . . 2 . 2 2 4 . 4 Programmer 73 | . . . . . . . . 2 3 . . . . 2 . 1 9 . . . . 23 13 . 20 Behemoth 1 | . . . . . . . . . . 1 . . . . . . . . . . . . . . . Cetus Guard 1 | . . . . . . . . . . . 1 . . . . . . . . . . . . . . Enhanced Grunt 1 | . . . . . . . . . . . 1 . . . . . . . . . . . . . . Tracker 12 | . . . . . . . . . . . . . . . . . . . . . . . . . 12 Combat Programmer 9 | . . . . . . . . . . . . . . . . . . . . . . . . . 9 Assembled 14 | . . . . 13 . . . . . . . . . . . . . . . . . . . . 1 Best Kill Streak 12 | . 4 3 6 12 . . 4 1 3 4 1 6 8 3 . 5 3 3 3 . 3 7 4 1 11 Combat Bots Only 12 | . 3 3 6 12 . . 4 1 3 2 1 4 8 3 . 5 3 3 3 . 3 6 4 1 10 Max Kills in Single Turn 4 | . 2 1 2 4 . . 3 1 1 1 1 4 3 3 . 1 1 1 1 . 1 2 2 1 3 Gunslinging 2 | . . . 1 . . . . . . . . . . 2 . . . . . . . . . . 1 Exploded 4 | . 1 . . 4 . . 3 . . . . 2 2 . . . . 1 . . . . . . 1 Melee 1 | . . . . . . . . . . . . . . . . . . . . . . . . . 1 Uniques/NPCs Destroyed 2 | . . . . . . . . . . . 1 . . . . . . . . . . . . 1 . A7 (-6/Cetus) A5 (-3/Lab) Combat | -11 -10 -10 -9 -9 -9 -8 -8 -7 -6 -6 -6 -5 -5 -5 -5 -4 -4 -4 -4 -4 -3 -3 -3 -3 -2 -------- Run | Scr Mat Min Mat Min Exi Min Mat Fac Fac Ext Cet Fac Upp Upp War Pro Fac Upp Upp Zhi Pro Res Arm Lab Res Damage Taken 39461 | . 483 477 638 1517 . . 802 312 308 1248 132 357 1471 310 63 1085 2763 331 1065 . 1133 4487 7267 608 12604 Core 3550 | . 100 54 78 217 . . 74 28 . 98 . 16 49 18 13 30 110 27 . . 34 316 800 19 1469 Absorbed by Shields 599 | . . . . . . . . . . 256 31 . . . . . . . . . . . . . 312 Core Remaining (%) 68 | 100 . 38 . . . 26 86 96 . . 88 . . . . 87 . . . . 85 . . 11 . Volleys Fired 989 | . 44 21 54 27 . . 57 15 21 38 23 20 38 5 . 28 66 7 14 . 25 105 124 12 245 Largest 4 | . 2 2 2 2 . . 2 2 3 3 3 3 3 3 . 3 3 3 3 . 3 4 4 4 4 Hottest 300 | . 50 85 108 91 . . 104 46 114 76 100 195 195 195 . 195 190 190 190 . 185 140 300 233 225 Shots Fired 2473 | . 88 42 105 54 . . 112 30 57 112 69 50 114 15 . 80 196 22 38 . 71 404 219 41 554 Gun 2242 | . 86 42 70 27 . . 67 30 44 112 69 50 114 15 . 80 196 22 38 . 71 404 158 11 536 Cannon 221 | . . . 35 23 . . 41 . 13 . . . . . . . . . . . . . 61 30 18 Launcher 10 | . 2 . . 4 . . 4 . . . . . . . . . . . . . . . . . . Special . | . . . . . . . . . . . . . . . . . . . . . . . . . . Kinetic 1797 | . 86 30 31 27 . . 67 30 44 112 69 16 . 12 . 48 152 . . . 53 404 126 41 449 Thermal 155 | . . 6 51 23 . . 41 . 13 . . . . . . . . . . . . . 17 . 4 Explosive 6 | . 2 . . 4 . . . . . . . . . . . . . . . . . . . . . Electromagnetic 515 | . . 6 23 . . . 4 . . . . 34 114 3 . 32 44 22 38 . 18 . 76 . 101 Robot Hit Streak 52 | . 17 6 15 30 . . 21 28 29 15 8 9 21 22 . 11 17 16 8 . 9 13 8 5 52 Robot Miss Streak 7 | . 6 3 5 5 . . 4 1 1 2 2 2 3 2 . 7 3 5 4 . 4 4 7 4 4 Penetration Max 2 | . . . . . . . . . . 1 1 . . . . . 1 . . . 1 1 2 . 2 Secondary Targets 44 | . . 1 1 . . . . . . 3 1 . 3 3 . 2 3 2 . . 1 11 2 . 11 Max Gunslinging Chain 2 | . . 1 1 . . . . . . 1 1 . 1 2 . 1 1 1 . . 1 1 1 . 1 Shots Hit Robots 1732 | . 56 25 68 33 . . 80 24 38 95 51 32 91 12 . 45 145 12 25 1 46 258 124 16 455 Core Hits 755 | . 24 8 35 44 . . 37 8 21 36 15 23 35 7 . 13 49 6 8 1 16 98 56 7 208 Critical Hits 130 | . 1 1 8 2 . . 7 . 1 . 9 1 1 1 . 1 15 . . . 1 27 11 . 43 Critical Kills 45 | . 1 . 5 . . . 3 . 1 . 3 1 1 . . 1 . . . . 1 11 5 . 12 Critical Parts Destroyed 68 | . . 1 2 2 . . 4 . . . 4 . . 1 . . 10 . . . . 15 6 . 23 Melee Attacks 154 | . . . . . . . 6 5 9 . . . . . . 1 32 . . 1 . 46 8 . 46 Impact 1 | . . . . . . . . . . . . . . . . . . . . . . . . . 1 Slashing 153 | . . . . . . . 6 5 9 . . . . . . 1 32 . . 1 . 46 8 . 45 Piercing . | . . . . . . . . . . . . . . . . . . . . . . . . . . Sneak Attacks 9 | . . . . . . . 1 . . . . . . . . . 3 . . . . . . . 5 Combat Hostiles . | . . . . . . . . . . . . . . . . . . . . . . . . . . Follow-up Attacks . | . . . . . . . . . . . . . . . . . . . . . . . . . . Damage Inflicted 49447 | . 914 368 1230 1411 . . 1719 404 715 1682 1512 2087 2647 365 . 815 4359 233 565 108 971 7262 5159 351 14570 Guns 39307 | . 724 368 649 235 . . 683 404 486 1682 1512 864 1982 365 . 815 3941 184 548 . 971 7252 3452 92 12098 Cannons 4064 | . . . 533 390 . . 613 . 229 . . . . . . . . . . . . . 1629 259 411 Explosions 3811 | . 190 . 48 786 . . 259 . . . . 1223 665 . . . 83 49 . . . . . . 508 Melee 2051 | . . . . . . . 164 . . . . . . . . . 335 . . 108 . . . . 1444 Ramming 214 | . . . . . . . . . . . . . . . . . . . 17 . . 10 78 . 109 Kinetic 32924 | . 724 264 210 235 . . 683 404 486 1682 1512 263 . 305 . 346 2991 . . . 732 7252 3411 351 11073 Thermal 4574 | . . 52 771 390 . . 613 . 229 . . 552 665 . . . 83 49 . . . . 526 . 644 Explosive 1647 | . 190 . . 786 . . . . . . . 671 . . . . . . . . . . . . . Electromagnetic 8037 | . . 52 249 . . . 259 . . . . 601 1982 60 . 469 950 184 548 . 239 . 1144 . 1300 Impact 54 | . . . . . . . . . . . . . . . . . . . . . . . . . 54 Slashing 1997 | . . . . . . . 164 . . . . . . . . . 335 . . 108 . . . . 1390 Piercing . | . . . . . . . . . . . . . . . . . . . . . . . . . . Highest Corruption 93 | . 2 2 . . . . 1 . . . . . 4 8 11 4 7 7 7 7 7 23 70 70 93 Average Corruption 15 | . 2 2 . . . . 1 . . . . . 4 5 8 2 4 7 7 7 7 11 42 7 36 Corruption Purged . | . . . . . . . . . . . . . . . . . . . . . . . . . . Effects 893 | . 2 10 . . . . . . . . . . 1 24 1 12 33 19 26 10 22 126 230 19 358 Message Errors 89 | . . 3 . . . . . . . . . . . 7 . 3 6 6 5 2 2 15 13 3 24 Matter Fused 87 | . . . . . . . . . . . . . 1 5 1 . 6 5 10 3 5 9 23 1 18 Heat Flow Errors 48 | . . 2 . . . . . . . . . . . 1 . 2 3 1 2 . 3 9 12 2 11 Energy Discharges 67 | . 1 1 . . . . . . . . . . . 5 . 2 4 1 6 . 3 10 20 1 13 Parts Rejected 5 | . . . . . . . . . . . . . . . . . . . . . . 2 2 . 1 Data Loss (minor) 58 | . 1 2 . . . . . . . . . . . 4 . 3 3 2 . 4 1 9 6 6 17 Data Loss (major) 15 | . . . . . . . . . . . . . . 1 . . 2 1 1 . 1 5 2 . 2 Misfires 10 | . . . . . . . . . . . . . . . . . . 1 . . . 5 2 . 2 Alerts 6 | . . . . . . . . . . . . . . . . . . . . . . . 1 . 5 Misdirections 67 | . . . . . . . . . . . . . . . . . . . . . . 2 27 2 36 Targeting Errors 371 | . . 2 . . . . . . . . . . . 1 . 2 8 2 2 1 5 48 103 3 194 Weapon Failures 70 | . . . . . . . . . . . . . . . . . 1 . . . 2 12 19 1 35 Overload Shots . | . . . . . . . . . . . . . . . . . . . . . . . . . . Overflow Damage 629 | . 6 . . 4 . . . . . . . 123 23 . . . 130 . . . . . 160 . 183 Projectiles 160 | . . . . . . . . . . . . . . . . . . . . . . . 160 . . Explosions 229 | . 6 . . 4 . . . . . . . 123 23 . . . . . . . . . . . 73 Melee 240 | . . . . . . . . . . . . . . . . . 130 . . . . . . . 110 Knockbacks 23 | . . . . . . . . . . . . . . . . . . . . . . . 15 4 4 Impact 3 | . . . . . . . . . . . . . . . . . . . . . . . 1 . 2 Kinetic 19 | . . . . . . . . . . . . . . . . . . . . . . . 13 4 2 Secondary 1 | . . . . . . . . . . . . . . . . . . . . . . . 1 . . Self-Inflicted Damage 468 | . . . . 129 . . 39 . . . . 43 53 . . . 58 54 . . . . . . 92 Shots 12 | . . . . 3 . . 3 . . . . 1 1 . . . 2 1 . . . . . . 1 Rammed 20 | . . . . . . . . . . . . . . . . . . . 1 . . 2 7 . 10 Targets Rammed 21 | . . . . . . . . . . . . . . . . . . . 1 . . 2 7 . 11 Kicked . | . . . . . . . . . . . . . . . . . . . . . . . . . . Crushed 1 | . . . . . . . . . . . . . . . . . . . . . . . . . 1 Highest Temperature 445 | . 5 253 290 78 . . 357 8 265 47 108 398 216 173 304 138 241 228 236 . 364 240 319 445 353 Average Temperature 87 | . 2 80 75 31 . . 82 6 118 10 41 134 82 68 158 76 70 88 127 . 135 60 92 202 98 Received Heat Transfer 3375 | . 162 192 219 46 . . 324 78 117 320 . 117 306 . . 60 201 . 186 . 183 267 9 . 588 Effects 10 | . . . . . . . 1 . 2 . . 1 . . . . . . . . 3 . . 1 2 Shutdowns 5 | . . . . . . . 1 . . . . 1 . . . . . . . . 1 . . 1 1 Interference 2 | . . . . . . . . . 2 . . . . . . . . . . . . . . . . Matter Decay 2 | . . . . . . . . . . . . . . . . . . . . . 1 . . . 1 Damage (minor) 1 | . . . . . . . . . . . . . . . . . . . . . 1 . . . . Siege Activations . | . . . . . . . . . . . . . . . . . . . . . . . . . . Robots Corrupted 29 | . . . . . . . . . . . . 2 8 . . 3 2 . 4 . 2 . 3 . 5 Combat Hostiles 29 | . . . . . . . . . . . . 2 8 . . 3 2 . 4 . 2 . 3 . 5 Parts Fried 66 | . . . . . . . . . . . . 3 14 . . 6 8 . 7 . 3 . 10 . 15 Impact Corruptions 1 | . . . . . . . . . . . . . . . . . . . . . . . 1 . . Robots Melted . | . . . . . . . . . . . . . . . . . . . . . . . . . . Combat Hostiles . | . . . . . . . . . . . . . . . . . . . . . . . . . . Parts Melted 10 | . . . 1 . . . 2 . 1 1 . . . . . . . . . . . . 1 . 4 Heat Transferred 5890 | . . 111 1543 703 . . 1110 . 407 . . 450 450 . . . 50 100 . . . . 518 . 448 Parts Sabotaged . | . . . . . . . . . . . . . . . . . . . . . . . . . . Parts Stolen . | . . . . . . . . . . . . . . . . . . . . . . . . . . Parts Stripped . | . . . . . . . . . . . . . . . . . . . . . . . . . . Power Chain Reactions 10 | . . . 1 . . . . . . . . 1 3 . . . 2 1 . . . . . . 2 Missiles Intercepted . | . . . . . . . . . . . . . . . . . . . . . . . . . . Alert | -11 -10 -10 -9 -9 -9 -8 -8 -7 -6 -6 -6 -5 -5 -5 -5 -4 -4 -4 -4 -4 -3 -3 -3 -3 -2 ------- Run | Scr Mat Min Mat Min Exi Min Mat Fac Fac Ext Cet Fac Upp Upp War Pro Fac Upp Upp Zhi Pro Res Arm Lab Res Peak Influence 958 | . 296 100 237 282 . . 283 173 141 260 652 875 . . . . 257 . . . . 596 521 . 958 Average Influence 202 | . 129 32 123 182 . . 134 77 43 137 428 544 . . . . 139 . . . . 185 267 . 382 Maximum Alert Level 3 | . 1 . 1 1 . . 1 . . 1 2 3 . . . . 1 . . . . 2 2 . 3 Low Security (%) 63 | 100 64 100 94 49 . 100 82 100 100 81 6 . . . . . 82 . . . . 58 14 . 41 Level 1 22 | . 35 . 5 50 . . 17 . . 18 38 39 . . . . 17 . . . . 22 80 . 12 Level 2 8 | . . . . . . . . . . . 54 36 . . . . . . . . . 18 5 . 18 Level 3 4 | . . . . . . . . . . . . 23 . . . . . . . . . . . . 26 Level 4 . | . . . . . . . . . . . . . . . . . . . . . . . . . . Level 5 . | . . . . . . . . . . . . . . . . . . . . . . . . . . High Security . | . . . . . . . . . . . . . . . . . . . . . . . . . . Max Security . | . . . . . . . . . . . . . . . . . . . . . . . . . . Squads Dispatched 79 | . 3 . 1 . . . 3 1 4 2 . 2 . . . . 9 . . . . 19 6 . 29 Investigation 4 | . 2 . . . . . . . . . . . . . . . 1 . . . . . . . 1 Extermination 24 | . . . . . . . . 1 2 . . . . . . . 5 . . . . 7 4 . 5 Reinforcement 23 | . 1 . 1 . . . 3 . 2 2 . 2 . . . . . . . . . 5 2 . 5 Assault 1 | . . . . . . . . . . . . . . . . . . . . . . 1 . . . Garrison 9 | . . . . . . . . . . . . . . . . . 3 . . . . 6 . . . Intercept 18 | . . . . . . . . . . . . . . . . . . . . . . . . . 18 Construction Impeded 6 | . . . . . . . 1 . . 1 . . . . . . . . . . . 1 . . 3 Haulers Reinforced 4 | . . . . . . . . . 1 . . 1 . . . . . . . . . 1 . . 1 Stealth | -11 -10 -10 -9 -9 -9 -8 -8 -7 -6 -6 -6 -5 -5 -5 -5 -4 -4 -4 -4 -4 -3 -3 -3 -3 -2 --------- Run | Scr Mat Min Mat Min Exi Min Mat Fac Fac Ext Cet Fac Upp Upp War Pro Fac Upp Upp Zhi Pro Res Arm Lab Res Distress Signals 19 | . 2 . 3 . . . 1 . 1 . 2 1 . . . . . . . . . 2 2 . 5 Communications Jammed 15 | . . . . . . . . . . . . . . . . . . . . . . 3 12 . . Distress Signals 13 | . . . . . . . . . . . . . . . . . . . . . . 1 12 . . Times Spotted 470 | . 18 5 34 34 . . 28 4 12 23 17 11 26 3 . 10 35 7 10 . 8 52 40 1 92 Peak Tracking Total 18 | . 4 3 5 18 . . 4 2 3 5 5 4 9 2 . 5 4 4 4 . 4 6 7 1 11 Tactical Retreats 24 | . . . 2 . . . 2 . 1 2 . . 4 . . . 6 1 1 . 1 3 1 . . Traps | -11 -10 -10 -9 -9 -9 -8 -8 -7 -6 -6 -6 -5 -5 -5 -5 -4 -4 -4 -4 -4 -3 -3 -3 -3 -2 ------- Run | Scr Mat Min Mat Min Exi Min Mat Fac Fac Ext Cet Fac Upp Upp War Pro Fac Upp Upp Zhi Pro Res Arm Lab Res Traps Triggered 21 | . 2 . . . . . . . 4 4 . 2 . 1 1 . 3 . . . . 1 3 . . Indirectly . | . . . . . . . . . . . . . . . . . . . . . . . . . . Trap Hack Attempts . | . . . . . . . . . . . . . . . . . . . . . . . . . . Triggered . | . . . . . . . . . . . . . . . . . . . . . . . . . . Disarmed . | . . . . . . . . . . . . . . . . . . . . . . . . . . Reprogrammed . | . . . . . . . . . . . . . . . . . . . . . . . . . . Reused . | . . . . . . . . . . . . . . . . . . . . . . . . . . Traps Extracted . | . . . . . . . . . . . . . . . . . . . . . . . . . . Installed . | . . . . . . . . . . . . . . . . . . . . . . . . . . Triggered . | . . . . . . . . . . . . . . . . . . . . . . . . . . Machines | -11 -10 -10 -9 -9 -9 -8 -8 -7 -6 -6 -6 -5 -5 -5 -5 -4 -4 -4 -4 -4 -3 -3 -3 -3 -2 ---------- Run | Scr Mat Min Mat Min Exi Min Mat Fac Fac Ext Cet Fac Upp Upp War Pro Fac Upp Upp Zhi Pro Res Arm Lab Res Machines Disabled 40 | . . . 1 . . . 3 . 1 1 2 13 1 . . . 6 . . . . 2 4 3 3 Max in Single Turn 5 | . . . 1 . . . 2 . 1 . . 5 1 . . . 3 . . . . 1 1 2 1 Garrison Access 1 | . . . . . . . . . . . . . . . . . . . . . . . . . 1 Energy Cycler 1 | . . . . . . . . . . 1 . . . . . . . . . . . . . . . Machines Sabotaged . | . . . . . . . . . . . . . . . . . . . . . . . . . . Garrisons Compromised . | . . . . . . . . . . . . . . . . . . . . . . . . . . Overloaded Fab Kills . | . . . . . . . . . . . . . . . . . . . . . . . . . . Fab Network Shutdowns . | . . . . . . . . . . . . . . . . . . . . . . . . . . Hacking | -11 -10 -10 -9 -9 -9 -8 -8 -7 -6 -6 -6 -5 -5 -5 -5 -4 -4 -4 -4 -4 -3 -3 -3 -3 -2 --------- Run | Scr Mat Min Mat Min Exi Min Mat Fac Fac Ext Cet Fac Upp Upp War Pro Fac Upp Upp Zhi Pro Res Arm Lab Res Machines Accessed 60 | . 6 . 5 . 2 . 2 4 4 7 3 1 1 . . . 3 . . 8 . 7 1 2 4 Terminals 40 | . 5 . 4 . . . 2 4 4 7 3 1 . . . . 3 . . . . 3 1 . 3 Fabricators . | . . . . . . . . . . . . . . . . . . . . . . . . . . Repair Stations . | . . . . . . . . . . . . . . . . . . . . . . . . . . Recycling Units 1 | . 1 . . . . . . . . . . . . . . . . . . . . . . . . Scanalyzers 1 | . . . 1 . . . . . . . . . . . . . . . . . . . . . . Garrison Access 5 | . . . . . . . . . . . . . . . . . . . . . . 4 . . 1 Total Hacks 170 | . 15 . 13 . 5 . 6 8 8 18 7 3 1 . . . 7 . . 47 . 11 1 6 14 Successful 111 | . 10 . 9 . 5 . 1 4 2 9 3 1 1 . . . 3 . . 47 . 1 . 6 9 Failed 59 | . 5 . 4 . . . 5 4 6 9 4 2 . . . . 4 . . . . 10 1 . 5 Catastrophic 10 | . . . . . . . . . 2 2 . 1 . . . . . . . . . 4 1 . . Database Lockouts . | . . . . . . . . . . . . . . . . . . . . . . . . . . Manual 55 | . 8 . 10 . 1 . 6 5 1 9 1 . . . . . 4 . . . . 1 1 1 7 Terminals 101 | . 14 . 11 . . . 6 8 8 18 7 3 . . . . 7 . . . . 5 1 . 13 Fabricators . | . . . . . . . . . . . . . . . . . . . . . . . . . . Repair Stations . | . . . . . . . . . . . . . . . . . . . . . . . . . . Recycling Units 1 | . 1 . . . . . . . . . . . . . . . . . . . . . . . . Scanalyzers 2 | . . . 2 . . . . . . . . . . . . . . . . . . . . . . Garrison Access 7 | . . . . . . . . . . . . . . . . . . . . . . 6 . . 1 Terminal Hacks 89 | . 5 . 2 . 5 . 1 1 2 6 3 1 1 . . . 3 . . 47 . 1 . 6 5 Record 47 | . . . . . 4 . . . . . 2 . . . . . . . . 35 . . . 6 . Part Schematic 4 | . . . . . . . . . . . . . . . . . . . . 4 . . . . . Robot Analysis 5 | . . . . . . . . . . 1 . . . . . . . . . 4 . . . . . Prototype ID Bank 5 | . . . . . . . . . . . . . . . . . . . . 4 . . . . 1 Open Door 8 | . . . . . . . . . 1 5 1 . 1 . . . . . . . . . . . . Branch Access Points 3 | . . . . . . . . . 1 . . 1 . . . . 1 . . . . . . . . Terminal Index 5 | . 1 . 1 . . . 1 . . . . . . . . . 1 . . . . . . . 1 Locate Traps 3 | . 3 . . . . . . . . . . . . . . . . . . . . . . . . Recall Extermination 1 | . . . . . . . . . . . . . . . . . . . . . . . . . 1 Registered Components 1 | . . . . . . . . . . . . . . . . . . . . . . . . . 1 Zone Layout 6 | . 1 . 1 . . . . 1 . . . . . . . . 1 . . . . 1 . . 1 EX-Prototype ID Bank 1 | . . . . . 1 . . . . . . . . . . . . . . . . . . . . Fabricator Hacks . | . . . . . . . . . . . . . . . . . . . . . . . . . . Repair Station Hacks . | . . . . . . . . . . . . . . . . . . . . . . . . . . Recycling Unit Hacks . | . . . . . . . . . . . . . . . . . . . . . . . . . . Scanalyzer 2 | . . . 2 . . . . . . . . . . . . . . . . . . . . . . Insert Component 2 | . . . 2 . . . . . . . . . . . . . . . . . . . . . . Garrison Access Hacks 1 | . . . . . . . . . . . . . . . . . . . . . . . . . 1 Seal Access 1 | . . . . . . . . . . . . . . . . . . . . . . . . . 1 Unauthorized Hacks 57 | . 11 . 14 . . . 5 6 . 11 . . . . . . . . . . . 1 1 . 8 Terminals 18 | . 4 . 5 . . . . 3 . 3 . . . . . . . . . . . . . . 3 Track 2 | . 1 . 1 . . . . . . . . . . . . . . . . . . . . . . Assimilate 1 | . . . . . . . . 1 . . . . . . . . . . . . . . . . . Botnet 12 | . 2 . 3 . . . . 1 . 3 . . . . . . . . . . . . . . 3 Operators 3 | . 1 . 1 . . . . 1 . . . . . . . . . . . . . . . . . Fabricators . | . . . . . . . . . . . . . . . . . . . . . . . . . . Repair Stations . | . . . . . . . . . . . . . . . . . . . . . . . . . . Recycling Units 1 | . 1 . . . . . . . . . . . . . . . . . . . . . . . . Tunnel 1 | . 1 . . . . . . . . . . . . . . . . . . . . . . . . Scanalyzers . | . . . . . . . . . . . . . . . . . . . . . . . . . . Garrison Access . | . . . . . . . . . . . . . . . . . . . . . . . . . . Data Cores Recovered . | . . . . . . . . . . . . . . . . . . . . . . . . . . Used . | . . . . . . . . . . . . . . . . . . . . . . . . . . Hacking Detections 42 | . 5 . 4 . . . 2 4 3 7 2 1 . . . . 3 . . . . 7 1 . 3 Full Trace Events 1 | . . . . . . . . . . . . . . . . . . . . . . . . . 1 Feedback Events . | . . . . . . . . . . . . . . . . . . . . . . . . . . Feedback Blocked . | . . . . . . . . . . . . . . . . . . . . . . . . . . Robot Schematics Acquired . | . . . . . . . . . . . . . . . . . . . . . . . . . . Robots Built . | . . . . . . . . . . . . . . . . . . . . . . . . . . Matter . | . . . . . . . . . . . . . . . . . . . . . . . . . . Time . | . . . . . . . . . . . . . . . . . . . . . . . . . . Total Robot Build Rating . | . . . . . . . . . . . . . . . . . . . . . . . . . . Part Schematics Acquired 4 | . . . . . . . . . . . . . . . . . . . . 4 . . . . . Parts Built . | . . . . . . . . . . . . . . . . . . . . . . . . . . Matter . | . . . . . . . . . . . . . . . . . . . . . . . . . . Time . | . . . . . . . . . . . . . . . . . . . . . . . . . . Total Part Build Rating . | . . . . . . . . . . . . . . . . . . . . . . . . . . Parts Repaired . | . . . . . . . . . . . . . . . . . . . . . . . . . . Time . | . . . . . . . . . . . . . . . . . . . . . . . . . . Parts Recycled . | . . . . . . . . . . . . . . . . . . . . . . . . . . Recycled Matter . | . . . . . . . . . . . . . . . . . . . . . . . . . . Retrieved Matter . | . . . . . . . . . . . . . . . . . . . . . . . . . . Retrieved Components . | . . . . . . . . . . . . . . . . . . . . . . . . . . Parts Scanalyzed . | . . . . . . . . . . . . . . . . . . . . . . . . . . Part Schematics Acquired . | . . . . . . . . . . . . . . . . . . . . . . . . . . Parts Damaged . | . . . . . . . . . . . . . . . . . . . . . . . . . . Bothacking | -11 -10 -10 -9 -9 -9 -8 -8 -7 -6 -6 -6 -5 -5 -5 -5 -4 -4 -4 -4 -4 -3 -3 -3 -3 -2 ------------ Run | Scr Mat Min Mat Min Exi Min Mat Fac Fac Ext Cet Fac Upp Upp War Pro Fac Upp Upp Zhi Pro Res Arm Lab Res Used RIF Installer . | . . . . . . . . . . . . . . . . . . . . . . . . . . Robots Hacked . | . . . . . . . . . . . . . . . . . . . . . . . . . . Non-combat . | . . . . . . . . . . . . . . . . . . . . . . . . . . Combat . | . . . . . . . . . . . . . . . . . . . . . . . . . . Robot Hacks Applied . | . . . . . . . . . . . . . . . . . . . . . . . . . . Relay Couplers Released 8 | . . . . . . . . . . . . . . . . . . . . . . 3 . . 5 Programmers 8 | . . . . . . . . . . . . . . . . . . . . . . 3 . . 5 Robots Rewired 9 | . . . . . . . . . . 7 . . 2 . . . . . . . . . . . . Allies Hacked . | . . . . . . . . . . . . . . . . . . . . . . . . . . Hacks Repelled . | . . . . . . . . . . . . . . . . . . . . . . . . . . Allies | -11 -10 -10 -9 -9 -9 -8 -8 -7 -6 -6 -6 -5 -5 -5 -5 -4 -4 -4 -4 -4 -3 -3 -3 -3 -2 -------- Run | Scr Mat Min Mat Min Exi Min Mat Fac Fac Ext Cet Fac Upp Upp War Pro Fac Upp Upp Zhi Pro Res Arm Lab Res Total Allies 52 | . . . . 1 . . . 1 . 15 5 . 2 . . . . . . . . . . 8 20 Largest Group 13 | . . . . 1 . . . 1 1 10 13 3 2 2 . . . . . . . . . 8 8 Highest-Rated Group 743 | . . . . 31 . . . 26 26 419 743 225 60 60 . . . . . . . . . 109 115 Highest-Rated Ally 156 | . . . . 31 . . . 26 26 156 156 94 30 30 . . . . . . . . . 15 15 Total Orders 6 | . . . . . . . . . . . . . . . . . . . . . . 6 . . . EXPLORE 6 | . . . . . . . . . . . . . . . . . . . . . . 6 . . . Ally Attacks 350 | . . . . 2 . . . . . 90 84 15 . 33 . . . . . . . . . 46 80 Total Damage 7430 | . . . . 42 . . . . . 1748 1931 289 . 583 . . . . . . . . . 979 1858 Kills 47 | . . . . 2 . . . . . 12 18 2 . 3 . . . . . . . . . . 10 Allies Corrupted 3 | . . . . . . . . . . . . . . 1 . . . . . . . . . 2 . Allies Melted . | . . . . . . . . . . . . . . . . . . . . . . . . . . Intel | -11 -10 -10 -9 -9 -9 -8 -8 -7 -6 -6 -6 -5 -5 -5 -5 -4 -4 -4 -4 -4 -3 -3 -3 -3 -2 ------- Run | Scr Mat Min Mat Min Exi Min Mat Fac Fac Ext Cet Fac Upp Upp War Pro Fac Upp Upp Zhi Pro Res Arm Lab Res Robot Analysis Total 5 | . . . . . . . . . . 1 . . . . . . . . . 4 . . . . . Derelict Logs Recovered 6 | . . 1 . 1 . . . . . . . . 1 . . 1 . 1 1 . . . . . . Drone Launches 9 | . . . . . . . . . . . . . . . . . . . . . . 9 . . . Drone Recoveries . | . . . . . . . . . . . . . . . . . . . . . . . . . . Exploration | -11 -10 -10 -9 -9 -9 -8 -8 -7 -6 -6 -6 -5 -5 -5 -5 -4 -4 -4 -4 -4 -3 -3 -3 -3 -2 ------------- Run | Scr Mat Min Mat Min Exi Min Mat Fac Fac Ext Cet Fac Upp Upp War Pro Fac Upp Upp Zhi Pro Res Arm Lab Res Turns Passed 23974 | 2 1008 774 1095 561 269 23 1146 948 913 1031 601 490 851 740 191 731 2532 525 734 311 698 2346 1528 1097 2829 Spaces Moved 10744 | 1 497 387 466 283 324 32 392 463 403 443 266 209 371 398 107 345 1102 272 375 163 336 856 528 543 1182 Core 117 | . . . . 2 . . . . . . . . . . . . . . . . . . . . 115 Treads 9566 | . 497 387 466 194 . . 53 463 403 443 266 209 371 398 107 345 1102 272 375 163 336 856 528 543 789 Legs 1 | 1 . . . . . . . . . . . . . . . . . . . . . . . . . Wheels 8 | . . . . . . . . . . . . . . . . . . . . . . . . . 8 Hover 889 | . . . . 87 324 32 339 . . . . . . . . . . . . . . . . . 107 Flight 163 | . . . . . . . . . . . . . . . . . . . . . . . . . 163 Fastest Speed 36 | 120 160 180 160 72 72 72 72 180 180 180 180 180 180 180 180 180 180 180 180 180 180 180 165 165 36 Average Speed 168 | 120 169 180 167 154 78 72 125 180 184 180 180 180 180 180 180 180 180 180 180 180 180 180 196 175 131 Slowest Speed 1050 | 120 180 180 180 1050 142 72 180 180 200 180 180 180 180 180 180 180 180 180 180 180 180 180 260 185 200 Overloaded Moves . | . . . . . . . . . . . . . . . . . . . . . . . . . . Propulsion Burnouts . | . . . . . . . . . . . . . . . . . . . . . . . . . . Robots Hopped . | . . . . . . . . . . . . . . . . . . . . . . . . . . Cave-ins Triggered 1 | . . . . . . . . . . . . . . . . . . . . . . 1 . . . Teleports 1 | . . . . . . . . . . . . . . . . . . . . . . . 1 . . Exploration Rate (%) 47 | 2 82 99 46 49 69 11 36 17 14 70 79 9 60 62 20 52 33 47 53 62 53 40 42 99 27 Regions Visited 25 Branch Regions 16 Pre-discovered Areas 6 | . 1 . . 1 1 . . . . . . . . . . . . . . 3 . . . . . Known Exits Taken 13 | . . . 1 . . . . 1 1 1 1 1 . . . . 1 1 1 1 1 1 . 1 . Unknown Exits Taken 12 | 1 1 1 . 1 1 1 1 . . . . . 1 1 1 1 . . . . . . 1 . . Scrap Searched 9 | . . 1 . 1 . . . . . . . . 1 1 . 1 . 1 2 . 1 . . . . Spaces Dug 110 | . . . . . . . 2 5 8 . . . . . . 1 26 . . . . 50 8 . 10 Terrain Destroyed 436 | . 4 . 1 46 . . 2 5 8 . 16 64 23 5 . 22 57 6 . . 22 82 32 6 35 Melee 105 | . . . . . . . 2 5 8 . . . . . . 1 26 . . . . 45 8 . 10 Projectile 174 | . . . . 1 . . . . . . 16 5 . 5 . 21 24 . . . 22 37 24 6 13 AOE 157 | . 4 . 1 45 . . . . . . . 59 23 . . . 7 6 . . . . . . 12 Actions | -11 -10 -10 -9 -9 -9 -8 -8 -7 -6 -6 -6 -5 -5 -5 -5 -4 -4 -4 -4 -4 -3 -3 -3 -3 -2 --------- Run | Scr Mat Min Mat Min Exi Min Mat Fac Fac Ext Cet Fac Upp Upp War Pro Fac Upp Upp Zhi Pro Res Arm Lab Res Total 14660 | 1 578 423 683 350 341 31 922 541 516 595 340 290 471 408 106 389 1446 290 404 180 374 1399 803 667 2112 Wait 1672 | . 6 7 97 21 . . 425 39 35 7 23 17 18 . . . 174 4 9 . 6 292 29 92 371 Move 10719 | . 496 386 465 282 323 31 391 462 402 442 265 208 370 397 106 344 1101 271 374 162 335 855 527 542 1182 Hop . | . . . . . . . . . . . . . . . . . . . . . . . . . . Pick Up 327 | . 17 3 29 6 8 . 15 7 12 8 13 17 7 . . 2 23 3 3 1 1 29 39 7 77 Fast Attach 55 | . 1 . 2 1 . . . . . 1 3 2 . . . . . . . 7 2 7 10 . 19 Attach 207 | . . 5 8 10 . . 4 3 6 4 . 2 3 . . 4 9 2 2 1 3 18 45 7 71 Detach 18 | . . . . . . . . . 1 . . . . . . . 1 . . 1 . 1 2 1 11 Swap 171 | 1 6 . 9 3 4 . 16 5 11 2 2 5 . 6 . 9 29 3 . . . 23 9 3 25 Drop 197 | . 8 1 19 . 6 . 8 5 11 6 11 19 3 . . 1 11 . 1 7 2 18 3 3 54 Fire 989 | . 44 21 54 27 . . 57 15 21 38 23 20 38 5 . 28 66 7 14 . 25 105 124 12 245 Melee 154 | . . . . . . . 6 5 9 . . . . . . 1 32 . . 1 . 46 8 . 46 Ram 3 | . . . . . . . . . . . . . . . . . . . . . . . . . 3 Kick . | . . . . . . . . . . . . . . . . . . . . . . . . . . Crush 18 | . . . . . . . . . . . . . . . . . . . 1 . . 2 7 . 8 Escape Stasis 15 | . . . . . . . . . 8 7 . . . . . . . . . . . . . . . Rewire 112 | . . . . . . . . . . 80 . . 32 . . . . . . . . . . . . Trap . | . . . . . . . . . . . . . . . . . . . . . . . . . . Miscellaneous 3 | . . . . . . . . . . . . . . . . . . . . . . 3 . . . Route ------- -11/Scrapyard -10/Materials (discovered 3 exits: *Mat x2 / [*Min]) -10/Mines (discovered 2 exits: *Mat x2) -9/Materials (discovered 3 exits: *Mat / *Min x2) -9/Mines -9/Exiles -8/Mines -8/Materials -7/Factory -6/Factory (discovered 4 exits: Low x2 / *Ext x2) -6/Extension (discovered 2 exits: *Fac / *Cet) -6/Cetus (discovered 2 exits: *Fac / [*Arc]) -5/Factory (discovered 2 exits: *Upp x2) -5/Upper Caves -5/Upper Caves -5/Warlord -4/Proximity Caves -4/Factory (discovered 5 exits: *Res x3 / *Upp x2) -4/Upper Caves -4/Upper Caves (discovered 2 exits: Res / *Zhi) -4/Zhirov -3/Proximity Caves -3/Research (discovered 3 exits: *Res / *Arm / Tes) -3/Armory -3/Lab -2/Research History --------- Turn | Location | Event 3 | -11/Scrapyard | Discovered new exit (range 0) 3 | -11/Scrapyard | Entered Materials 325 | -10/Materials | Build established: Mutant 351 | -10/Materials | Discovered new exit (range 15) 598 | -10/Materials | Discovered new exit (range 6) 784 | -10/Materials | Discovered new exit (range 8) 1011 | -10/Materials | Entered Mines 1134 | -10/Mines | Received a Rocket Launcher from a helpful Derelict 1193 | -10/Mines | Discovered new exit (range 10) 1200 | -10/Mines | Discovered new exit (range 14) 1671 | -10/Mines | Core integrity fell below 50% 1731 | -10/Mines | Lost 4 parts (2n2w) 1785 | -10/Mines | Entered Materials 1785 | -9/Materials | Evolved 2 slots: Propulsion x1, Utility x1 1786 | -9/Materials | Identified exit to Mines 2428 | -9/Materials | Build established: Hauler-Mutant 2723 | -9/Materials | Discovered new exit (range 4) 2880 | -9/Materials | Entered Mines 3189 | -9/Mines | Received a Mining Laser from a helpful Derelict 3248 | -9/Mines | Assembled infested the area 3253 | -9/Mines | Assisted by a Guerilla fighting off Assembled 3316 | -9/Mines | Destroyed 12 combat bots 3324 | -9/Mines | Core integrity fell below 50% 3358 | -9/Mines | Lost 10 parts (1p6n3w) 3382 | -9/Mines | Learned location of Zion (-7) 3438 | -9/Mines | Deemed a non-threat by the Exiles lab entrance 3438 | -9/Mines | Discovered new exit (range 5) 3441 | -9/Mines | Entered Exiles 3460 | -9/Exiles | Met 8R-AWN 3472 | -9/Exiles | Met EX-HEX 3501 | -9/Exiles | Met EX-DEC 3519 | -9/Exiles | Met EX-BIN 3527 | -9/Exiles | Aligned with FarCom system 3528 | -9/Exiles | Given EX-Vault access code 3547 | -9/Exiles | Opened EX-Vault 3552 | -9/Exiles | Found Modified TNC 3569 | -9/Exiles | Warned to stay clear of 0b10 Research branches 3693 | -9/Exiles | Discovered new exit (range 10) 3710 | -9/Exiles | Left Exiles lab with Modified TNC 3710 | -9/Exiles | Entered Mines 3728 | -8/Mines | Discovered new exit (range 8) 3733 | -8/Mines | Entered Materials 3733 | -8/Materials | Evolved 2 slots: Utility x2 4876 | -8/Materials | Discovered new exit (range 3) 4879 | -8/Materials | Entered Factory 4879 | -7/Factory | Evolved 2 slots: Utility x2 5169 | -7/Factory | Build established: Hauler-Skirmisher 5801 | -7/Factory | Discovered new exit (range 12) 5825 | -7/Factory | Identified exit to Factory 5827 | -7/Factory | Entered another Factory area 5827 | -6/Factory | Accompanied by 1 ally 5827 | -6/Factory | Evolved 2 slots: Utility x1, Weapon x1 6422 | -6/Factory | Identified exit to Lower Caves 6422 | -6/Factory | Identified exit to Extension 6471 | -6/Factory | Build established: Hauler-Tank 6740 | -6/Factory | Entered Extension 6956 | -6/Extension | Rescued a captive Derelict 6957 | -6/Extension | Rescued a captive Derelict 7180 | -6/Extension | Rescued a captive Derelict 7233 | -6/Extension | Rescued a captive Derelict 7234 | -6/Extension | Rescued a captive Derelict 7243 | -6/Extension | Spotted B-75 Beast 7256 | -6/Extension | Spotted B-75 Beast 7271 | -6/Extension | Allies destroyed B-75 Beast 7282 | -6/Extension | Destroyed B-75 Beast 7359 | -6/Extension | Rescued A7 7394 | -6/Extension | Rescued a captive Derelict 7519 | -6/Extension | Energy Cycler disabled 7519 | -6/Extension | Rescued a captive Derelict 7520 | -6/Extension | Rescued a captive Derelict 7520 | -6/Extension | Rescued a captive Derelict 7743 | -6/Extension | Discovered new exit (range 10) 7745 | -6/Extension | Discovered new exit (range 6) 7770 | -6/Extension | Identified exit to Cetus 7771 | -6/Extension | Entered Cetus 7771 | -6/Cetus | Accompanied by 10 allies 7776 | -6/Cetus | Acquired a Cetus Manufacturing Module code from A7 7794 | -6/Cetus | Spotted Cetus Guard 7794 | -6/Cetus | Spotted Cetus Guard 7798 | -6/Cetus | Spotted Cetus Guard 7798 | -6/Cetus | Spotted Cetus Guard 7808 | -6/Cetus | Allies destroyed Cetus Guard 7812 | -6/Cetus | Allies destroyed Cetus Guard 7814 | -6/Cetus | Allies destroyed Cetus Guard 7817 | -6/Cetus | Allies destroyed Cetus Guard 7914 | -6/Cetus | Started Cetus Manufacturing Module 7927 | -6/Cetus | Escorted A7 to Cetus Mainframe 7939 | -6/Cetus | Manufactured an Enhanced Grunt 7964 | -6/Cetus | Manufactured an Enhanced Grunt 7989 | -6/Cetus | Manufactured an Enhanced Grunt 8014 | -6/Cetus | Manufactured an Enhanced Grunt 8039 | -6/Cetus | Manufactured an Enhanced Grunt 8041 | -6/Cetus | Cetus Manufacturing Module disabled 8123 | -6/Cetus | Build established: Hauler-Skirmisher 8143 | -6/Cetus | Discovered new exit (range 16) 8205 | -6/Cetus | Destroyed A7 8214 | -6/Cetus | Extracted ID and sensor layout for unrecognized location from A7's data core 8314 | -6/Cetus | Spotted Cetus Guard 8314 | -6/Cetus | Spotted Cetus Guard 8314 | -6/Cetus | Destroyed Cetus Guard 8316 | -6/Cetus | Spotted Cetus Guard 8329 | -6/Cetus | Allies destroyed Cetus Guard 8330 | -6/Cetus | Spotted Cetus Guard 8330 | -6/Cetus | Allies destroyed Cetus Guard 8331 | -6/Cetus | Discovered new exit (range 16) 8336 | -6/Cetus | Allies destroyed Cetus Guard 8347 | -6/Cetus | Met Revision 17 8369 | -6/Cetus | Identified exit to Factory 8372 | -6/Cetus | Entered Factory 8372 | -5/Factory | Accompanied by 3 allies 8372 | -5/Factory | Evolved 2 slots: Utility x2 8554 | -5/Factory | Identified exit to Upper Caves 8717 | -5/Factory | Build established: Hauler-Tank 8862 | -5/Factory | Entered Upper Caves 9299 | -5/Upper Caves | Learned Factory emergency access door positions 9390 | -5/Upper Caves | Attracted the attention of an 0b10 checkpoint 9549 | -5/Upper Caves | Attracted the attention of an 0b10 outpost 9614 | -5/Upper Caves | Lost 3 parts (2u1w) 9619 | -5/Upper Caves | Destroyed 8 combat bots 9699 | -5/Upper Caves | Discovered new exit (range 8) 9713 | -5/Upper Caves | Entered another Upper Caves area 9713 | -5/Upper Caves | Accompanied by 2 allies 10444 | -5/Upper Caves | Discovered new exit (range 5) 10453 | -5/Upper Caves | Entered Warlord 10458 | -5/Warlord | System corruption reached 10% 10513 | -5/Warlord | System corruption cleaned by Quarantine Array 10621 | -5/Warlord | Discovered new exit (range 15) 10644 | -5/Warlord | Entered Proximity Caves 10830 | -4/Proximity Caves | Learned 12 Research zone layouts 10875 | -4/Proximity Caves | Attracted the attention of an 0b10 checkpoint 11361 | -4/Proximity Caves | Discovered new exit (range 6) 11375 | -4/Proximity Caves | Entered Factory 11375 | -4/Factory | Evolved 2 slots: Utility x2 11524 | -4/Factory | Spotted B-86 Titan 12764 | -4/Factory | Discovered new exit (range 4) 12767 | -4/Factory | Identified exit to Research 13172 | -4/Factory | Discovered exit to Research (range 15) 13174 | -4/Factory | Build established: Scavenger-Tank 13320 | -4/Factory | Identified exit to Upper Caves 13512 | -4/Factory | Garrison activated, responded to threat 13872 | -4/Factory | Discovered exit to Research (range 16) 13907 | -4/Factory | Entered Upper Caves 13959 | -4/Upper Caves | Learned Research stockpile data 14198 | -4/Upper Caves | Build established: Hauler-Tank 14382 | -4/Upper Caves | Discovered new exit (range 16) 14407 | -4/Upper Caves | Identified exit to Upper Caves 14432 | -4/Upper Caves | Entered another Upper Caves area 15159 | -4/Upper Caves | Discovered new exit (range 5) 15165 | -4/Upper Caves | Identified exit to Zhirov 15166 | -4/Upper Caves | Entered Zhirov 15168 | -4/Zhirov | Discovered new exit (range 3) 15200 | -4/Zhirov | Met Zhirov 15238 | -4/Zhirov | Learned location of Quarantine (-2) 15238 | -4/Zhirov | Learned location of Testing (-3) 15238 | -4/Zhirov | Learned location of Command (-1) 15272 | -4/Zhirov | Zhirov requested help retrieving the SGEMP Prototype 15300 | -4/Zhirov | Found Alien Artifact 15300 | -4/Zhirov | Identified Integrated Dissipator 15300 | -4/Zhirov | Installed Integrated Dissipator, increased core heat dissipation (+2%) 15391 | -4/Zhirov | Found Alien Artifact 15464 | -4/Zhirov | Build established: Hauler-Mutant 15475 | -4/Zhirov | Identified exit to Proximity Caves 15477 | -4/Zhirov | Entered Proximity Caves 15507 | -3/Proximity Caves | Attracted the attention of an 0b10 checkpoint 15801 | -3/Proximity Caves | Build established: Hauler-Tank 16134 | -3/Proximity Caves | Build established: Scavenger-Tank 16170 | -3/Proximity Caves | Discovered exit to Research (range 3) 16175 | -3/Proximity Caves | Entered Research 16175 | -3/Research | Evolved 2 slots: Utility x1, Weapon x1 16176 | -3/Research | Identified exit to Testing 16176 | -3/Research | Identified exit to Armory 16700 | -3/Research | Garrison activated, responded to threat 16772 | -3/Research | Lost 4 parts (1p1n1u1w) 17524 | -3/Research | Discovered new exit (range 18) 17644 | -3/Research | Identified exit to Research 17720 | -3/Research | Build established: Hauler-Gunner 17761 | -3/Research | System corruption reached 10% 18191 | -3/Research | Garrison activated, responded to threat 18446 | -3/Research | Crushed by falling debris 18475 | -3/Research | First assault squad dispatched 18521 | -3/Research | Entered Armory 18552 | -3/Armory | Lost 7 parts (1p1n2u3w) 18872 | -3/Armory | Lost 3 parts (2u1w) 19000 | -3/Armory | Lost 10 parts (1p2n1u6w) 19239 | -3/Armory | Build established: Hauler-Mutant 19377 | -3/Armory | System corruption reached 30% 19482 | -3/Armory | Core integrity fell below 50% 19536 | -3/Armory | Lost 9 parts (3n4u2w) 19616 | -3/Armory | Lost 7 parts (2p1n2u2w) 19625 | -3/Armory | Core integrity fell below 20% 19688 | -3/Armory | Lost 4 parts (1u3w) 20048 | -3/Armory | Identified Transdimensional Reconstructor 20048 | -3/Armory | Warped through subspace to slip node 20048 | -3/Armory | Discovered new exit (range 1) 20049 | -3/Armory | Entered Lab 20058 | -3/Lab | Discovered exit to Research (range 9) 20086 | -3/Lab | Hidden lab's door opened automatically 20086 | -3/Lab | Sensor layout match revealed 20087 | -3/Lab | Gained access to the hidden lab's interior 20097 | -3/Lab | Unable to decrypt terminal 20108 | -3/Lab | Found Alien Artifact 20109 | -3/Lab | Identified Core Reset Matrix 20109 | -3/Lab | Used Core Reset Matrix 20113 | -3/Lab | Emitted hypermatrix ping 20113 | -3/Lab | Sensed 3 artifacts in vicinity 20118 | -3/Lab | Assembled emerged from beneath the floor 20118 | -3/Lab | Detected by scanners 20119 | -3/Lab | Unable to decrypt terminal 20158 | -3/Lab | Confronted by A5 20236 | -3/Lab | Discovered exit to Research (range 6) 20270 | -3/Lab | Destroyed A5 20338 | -3/Lab | Unable to decrypt terminal 20339 | -3/Lab | Build established: Hauler-Tank 20365 | -3/Lab | Found Prototype Protection 20366 | -3/Lab | Identified Med. Regenerative Plating 20375 | -3/Lab | Found Prototype Energy Gun 20376 | -3/Lab | Identified Hyp. EM Gauss Rifle 20384 | -3/Lab | Found Prototype Energy Cannon 20393 | -3/Lab | Found Prototype Hackware 20455 | -3/Lab | Found Prototype Special Weapon 20480 | -3/Lab | Unable to decrypt terminal 20816 | -3/Lab | Unable to decrypt terminal 20935 | -3/Lab | Build established: Hauler-Mutant 21009 | -3/Lab | Unable to decrypt terminal 21070 | -3/Lab | Unable to decrypt terminal 21111 | -3/Lab | Unable to decrypt terminal 21146 | -3/Lab | Entered Research 21146 | -2/Research | Evolved 2 slots: Power x1, Utility x1 21705 | -2/Research | Identified Potential Cannon 21706 | -2/Research | Identified Gui. Remote Datajack 21935 | -2/Research | Intercept squad dispatched 21937 | -2/Research | Spotted Tracker 21938 | -2/Research | Spotted Tracker 21943 | -2/Research | Destroyed Tracker 21976 | -2/Research | Spotted Combat Programmer 21984 | -2/Research | Destroyed Tracker 22012 | -2/Research | Destroyed Combat Programmer 22023 | -2/Research | Spotted Combat Programmer 22040 | -2/Research | Destroyed Combat Programmer 22067 | -2/Research | Found Prototype Energy Gun 22144 | -2/Research | Identified Deep Network Scanner 22168 | -2/Research | System corruption reached 10% 22276 | -2/Research | Build established: Scavenger-Tank 22515 | -2/Research | Intercept squad dispatched 22523 | -2/Research | Spotted Tracker 22523 | -2/Research | Spotted Tracker 22529 | -2/Research | Destroyed Tracker 22529 | -2/Research | Spotted Tracker 22532 | -2/Research | Destroyed Tracker 22541 | -2/Research | Destroyed Tracker 22579 | -2/Research | Found Prototype Processor 22579 | -2/Research | Identified Exp. Targeting Computer 22583 | -2/Research | Found Prototype Device 22583 | -2/Research | Identified Exp. Phase Shifter 22599 | -2/Research | Spotted Combat Programmer 22600 | -2/Research | Spotted Combat Programmer 22600 | -2/Research | Spotted Combat Programmer 22611 | -2/Research | Destroyed Combat Programmer 22646 | -2/Research | Destroyed Combat Programmer 22656 | -2/Research | Destroyed Combat Programmer 22657 | -2/Research | System corruption reached 30% 22671 | -2/Research | Lost 3 parts (1n2u) 22676 | -2/Research | Found Exp. Targeting Computer 22820 | -2/Research | Lost 4 parts (2p1u1w) 23021 | -2/Research | Identified Immobilizer 23245 | -2/Research | Lost 4 parts (1p1n1u1w) 23361 | -2/Research | Intercept squad dispatched 23373 | -2/Research | Spotted Tracker 23374 | -2/Research | Spotted Tracker 23374 | -2/Research | Spotted Tracker 23374 | -2/Research | Spotted Tracker 23386 | -2/Research | Destroyed Tracker 23392 | -2/Research | Spotted Combat Programmer 23405 | -2/Research | Destroyed Tracker 23407 | -2/Research | Destroyed Tracker 23434 | -2/Research | Spotted Combat Programmer 23441 | -2/Research | Spotted Combat Programmer 23450 | -2/Research | Spotted Combat Programmer 23461 | -2/Research | Destroyed Combat Programmer 23468 | -2/Research | Destroyed Tracker 23488 | -2/Research | Destroyed Combat Programmer 23509 | -2/Research | Destroyed 10 combat bots 23513 | -2/Research | Destroyed Combat Programmer 23544 | -2/Research | Lost 23 parts (3p2n7u11w) 23554 | -2/Research | Destroyed Combat Programmer 23563 | -2/Research | Found Prototype Energy Gun 23564 | -2/Research | Identified Immobilizer 23656 | -2/Research | Lost 3 parts (1p1n1u) 23662 | -2/Research | Core integrity fell below 50% 23692 | -2/Research | Emitted hypermatrix ping 23697 | -2/Research | Assembled emerged from beneath the floor 23737 | -2/Research | Lost 10 parts (1p3n1u5w) 23769 | -2/Research | Assembled emerged from beneath the floor 23870 | -2/Research | Assembled emerged from beneath the floor 23916 | -2/Research | Intercept squad dispatched 23917 | -2/Research | Spotted Tracker 23917 | -2/Research | Spotted Tracker 23918 | -2/Research | Spotted Tracker 23919 | -2/Research | Spotted Tracker 23919 | -2/Research | Allies destroyed Tracker 23920 | -2/Research | Spotted Tracker 23929 | -2/Research | Found Exp. Phase Shifter 23929 | -2/Research | Spotted Combat Programmer 23931 | -2/Research | Spotted Combat Programmer 23933 | -2/Research | Spotted Combat Programmer 23937 | -2/Research | Destroyed Tracker 23940 | -2/Research | Core integrity fell below 20% 23950 | -2/Research | Destroyed Tracker 23960 | -2/Research | Destroyed Tracker 23975 | -2/Research | Destroyed by Combat Programmer with EMDS Last Messages --------------- 23961_ Dropped Mic. Fission Core. 23961_ Mic. Fission Core crushed and broken. 23962_ Dropped Imp. Cloaking Device. 23962_ Imp. Cloaking Device crushed and broken. 23964_ Acquired Linked Autogun. 23965_ Penetrated by EMDS Slug. 23966_ System corrupted: Component data lost. 23966_ System corrupted: Linked Autogun jammed. 23966_ System corrupted: Linked Autogun targeting data glitched. 23967_ Slammed into Combat Programmer. 23967_ Penetrated by EMDS Slug. 23968_ Acquired 69 matter. 23969_ Penetrated by EMDS Slug. 23969_ Linked Autogun destroyed. 23969_ Penetrated by EMDS Slug. 23972_ Acquired Linear Accelerator. 23972_ Penetrated by EMDS Slug. 23973_ System corrupted: Linear Accelerator targeting data glitched. 23975_ Penetrated by EMDS Slug. Map ----- +----------------------------------------------------+ | #????????????????????????????????????????? | | ?? ??????????????????????????????????????????? | | ####+##??????????????????????????????????????????? | | #??????????????????????????????????????????? | | #??????????????????????????????????????????? | | #??????????????????????????????????????????? | | #??????????????????????????????????????????? | | ## #??????????????????????????????????????????? | | ## #??????????????????????????????????????????? | | # ############w##????????????????????????????? | | + w p#????????????????????????????? | | # p #????????????????????????????? | | # ##########???????????????????? | | # w # #???????????????????? | | ########+###### # #???????????????????? | | #???# # # """ #???????????????????? | | #???# # # """ #???????????????????? | | #???# # + """ #???????????????????? | | ###### + # """ #???????????????????? | | # # # """ #???????????????????? | | # # # #???????????????????? | | # # # #???????????????????? | | # # #####/##############?????????? | | ########### #???#pp !%!%![%%%%%%%%!% ??? | | ########### #???#!##############?????????? | | + #???#@#??????????????????????? | | # #####/########???????????????? | | #+######### # #???????????????? | | # ] # # #???????????????? | | # # # #???????????????? | | # # # #???????????????? | | # == + # #???????????????? | | ###### == # # #???????????????? | | ?????# == # / #???????????????? | | ?????# # # #???????????????? | | ?????# ###### #???????????????? | | ?????###########????# #???????????????? | | ????????????????????# | #???????????????? | | ????????????????????# #???????????????? | | ????????????????????##############???????????????? | | ?????????????????????????????????????????????????? | | ?????????????????????????????????????????????????? | | ?????????????????????????????????????????????????? | | | | | | | | | | | | | | | +----------------------------------------------------+ Best States ------------- Heat Dissipation 114 Energy Generation 45 Energy Capacity 440 Matter Stores 355 Matter Capacity 500 Sight Range 16 Robot Scan Range 20 Terrain Scan Density 210 Jamming Range 16 Cloak Strength 3 Armor Coverage 1500 Resistance: TH 15 Core Shielding 30 Power Shielding 33 Utility Shielding 90 Weapon Shielding 66 Weapon Cycling 25 Phase Shifting 20 Evasion (%) 76 Targeting Accuracy 12 Target Analysis 8 Armor Integrity Analysis 50 Recoil Reduction 9 Matter Filtering 50 Particle Charging 30 Salvage Targeting 3 Offensive Hacking 25 Defensive Hacking 12 Item Schematics ----------------- None Robot Schematics ------------------ None Fabricated ------------ Nothing Alien Tech Used ----------------- Integrated Dissipator Transdimensional Reconstructor Core Reset Matrix Achievements -------------- None Challenges ------------ None Game ------ Seed ChromaticMicroPrototype Manual? 0 Play Time 04:50:06 Cumulative 213.2 hours Start 2020.03.25 @ 14:03:00 End 2020.04.02 @ 08:36:05 Sessions 7 Manual Loads 0 Difficulty Rogue Special Mode None Game No. 119 Rogue 111 Adventurer 8 Explorer 0 Win Type - Total 9 Types 7/0/0/2/0/0/0 Lore% 73 Gallery% 74 Achievement% 62 Wizard Run 0 Options --------- ASCII 0 Keyboard 0 Movement Mouse Keybinds 0 Fullscreen 2 Font 14/SmallcapsGlow Map View 72x52 Tactical HUD 1 Map Filters NONE Filters NONE Steam 0 RUN: bc2b44d7-1858-45d7-bf2d-9aca1bf995ab